bitfinex/quotes_BTCUSD_20230120
["timestamp","ask_amount","ask_price","bid_price","bid_amount"]
[1674235850595,0.358308,21346.0,21342.0,0.86286374]
[1674235850596,0.2238,21346.0,21342.0,0.86286374]
[1674235850855,0.37642673,21345.0,21342.0,0.60168737]
[1674235851122,0.27490236,21345.0,21342.0,0.468545]
[1674235851382,0.134508,21344.0,21342.0,0.468545]
[1674235851643,0.134508,21343.0,21342.0,0.468545]
[1674235851905,0.24191873,21345.0,21342.0,0.468545]
[1674235852161,0.24191873,21345.0,21342.0,0.65601068]
[1674235852499,0.24191873,21345.0,21342.0,1.12456968]
[1674235852680,0.24191873,21345.0,21342.0,0.99336222]
[1674235852955,0.24191873,21345.0,21342.0,1.46192122]
[1674235853236,0.29391873,21345.0,21342.0,1.46392122]
[1674235853501,0.29391873,21345.0,21343.0,0.19324812]
[1674235853716,0.29391873,21345.0,21343.0,0.468537]
[1674235854030,0.29391873,21345.0,21343.0,0.937074]
[1674235854577,0.00527046,21347.0,21344.0,0.19432097]
[1674235854834,0.19602505,21347.0,21345.0,0.793956]
[1674235855120,0.19602505,21347.0,21345.0,0.19432097]
[1674235855374,0.19602505,21347.0,21345.0,1.15167474]
[1674235855640,0.19602505,21347.0,21346.0,0.314806]
[1674235855641,0.00527046,21347.0,21346.0,0.314806]
[1674235855901,0.00527046,21347.0,21346.0,0.936942]
[1674235856160,0.07827046,21347.0,21346.0,1.40406862]
[1674235856524,0.07827046,21347.0,21346.0,1.7805813]
[1674235856528,0.07827046,21347.0,21346.0,1.3121103]
[1674235856973,0.07827046,21347.0,21346.0,1.70886062]
[1674235857188,0.07827046,21347.0,21346.0,1.241734]
[1674235857417,0.07827046,21347.0,21346.0,0.468471]
[1674235857418,0.32649772,21347.0,21346.0,0.468471]
[1674235857630,0.39949772,21347.0,21346.0,0.002]
[1674235859278,0.30451772,21347.0,21346.0,0.002]
[1674235859538,0.30451772,21347.0,21346.0,0.18638417]
[1674235860593,0.07827046,21347.0,21346.0,1.01055214]
[1674235861374,0.07827046,21347.0,21346.0,1.78954814]
[1674235863245,0.00527046,21347.0,21346.0,1.78754814]
[1674235863511,0.07227046,21347.0,21346.0,1.78754814]
[1674235863766,0.00527046,21347.0,21346.0,1.78754814]
[1674235864017,0.01227046,21347.0,21346.0,1.81154814]
[1674235864317,0.01227046,21347.0,21346.0,1.34307714]
[1674235865315,0.01227046,21347.0,21346.0,0.69022197]
[1674235865656,0.01227046,21347.0,21346.0,1.15869297]
[1674235865903,0.01227046,21347.0,21346.0,1.31663897]
[1674235866158,0.01227046,21347.0,21346.0,1.65427497]
[1674235867374,0.01227046,21347.0,21346.0,1.56659897]
[1674235867635,0.01227046,21347.0,21346.0,2.36055012]
[1674235867895,0.01227046,21347.0,21346.0,1.8907852]
[1674235868190,0.01227046,21347.0,21346.0,2.17578549]
[1674235868426,0.01227046,21347.0,21346.0,2.20953833]
[1674235869222,0.01227046,21347.0,21346.0,1.99103113]
[1674235869530,0.01227046,21347.0,21346.0,1.89103113]
[1674235869790,0.01227046,21347.0,21346.0,1.81733113]
[1674235870583,0.01227046,21347.0,21346.0,1.731278]
[1674235870857,0.01227046,21347.0,21346.0,2.06517478]
[1674235871119,0.01227046,21347.0,21346.0,2.46622086]
[1674235871397,0.01227046,21347.0,21346.0,2.56877457]
[1674235871907,0.01227046,21347.0,21346.0,2.13232408]
[1674235874311,0.01227046,21347.0,21346.0,2.20652408]
[1674235875319,0.04525409,21347.0,21346.0,1.86926146]
[1674235875581,0.01227046,21347.0,21346.0,1.86926146]
[1674235875862,0.01227046,21347.0,21346.0,1.505478]
[1674235876178,0.01227046,21347.0,21346.0,1.83937478]
[1674235876432,0.01227046,21347.0,21346.0,2.21079856]
[1674235876701,0.01227046,21347.0,21346.0,2.17690178]
[1674235877217,0.00573968,21351.0,21347.0,0.02039023]
[1674235877485,0.00573968,21351.0,21350.0,0.0735]
[1674235877746,0.00573968,21351.0,21350.0,1.808575]
[1674235878002,0.00573968,21351.0,21350.0,2.47127997]
[1674235878282,0.00573968,21351.0,21350.0,2.98505578]
[1674235879406,0.00573968,21351.0,21350.0,3.09405578]
[1674235879932,0.00573968,21351.0,21350.0,2.98505578]
[1674235880222,0.00573968,21351.0,21350.0,3.09305578]
[1674235880484,0.00573968,21352.0,21351.0,0.15]
[1674235880741,0.00573968,21352.0,21351.0,2.11419177]
[1674235880995,0.00573968,21352.0,21351.0,2.26169177]
[1674235881257,0.00709069,21353.0,21351.0,2.54279177]
[1674235881518,0.00709069,21353.0,21352.0,1.19257956]
[1674235881778,0.00761625,21354.0,21352.0,2.57925956]
[1674235882038,0.00761625,21354.0,21353.0,1.10267478]
[1674235882299,0.00761625,21354.0,21353.0,2.19781078]
[1674235882573,0.00761625,21356.0,21353.0,2.19781078]
[1674235883022,0.00761625,21356.0,21355.0,0.1483]
[1674235883289,0.00761625,21356.0,21355.0,2.638979]
[1674235883550,0.00761625,21356.0,21355.0,2.347479]
[1674235883814,0.00761625,21356.0,21355.0,2.573379]
[1674235884602,0.00861625,21356.0,21355.0,2.273379]
[1674235884855,0.00861625,21356.0,21355.0,2.6225673]
[1674235884856,0.00761625,21356.0,21355.0,2.6225673]
[1674235885119,0.00861625,21356.0,21355.0,2.6995673]
[1674235885595,0.00861625,21356.0,21355.0,3.05615714]
[1674235886117,0.00861625,21356.0,21355.0,2.9995673]
[1674235886372,0.00861625,21356.0,21355.0,3.33346408]
[1674235886945,0.00861625,21356.0,21355.0,3.48346408]
[1674235887206,0.00861625,21356.0,21355.0,3.1495673]
[1674235888279,0.00861625,21356.0,21355.0,3.31499843]
[1674235888807,0.00861625,21356.0,21355.0,3.1495673]
[1674235890357,0.00861625,21356.0,21355.0,3.19277316]
[1674235890851,0.00861625,21356.0,21355.0,3.04277316]
[1674235891117,0.00861625,21356.0,21355.0,2.96857316]
[1674235891965,0.00861625,21356.0,21355.0,2.6995673]
[1674235892169,0.00861625,21356.0,21355.0,2.9995673]
[1674235892696,0.00861625,21356.0,21355.0,3.1495673]
[1674235893489,0.00861625,21356.0,21355.0,3.22057955]
[1674235893748,0.00861625,21356.0,21355.0,2.99637955]
[1674235897110,0.00861625,21356.0,21355.0,2.52810555]
[1674235897371,0.00861625,21356.0,21355.0,2.17891725]
[1674235898144,0.00761625,21356.0,21355.0,2.10191725]
[1674235898501,0.00961625,21356.0,21355.0,2.16691725]
[1674235898911,0.00761625,21356.0,21355.0,2.10191725]
[1674235899178,0.00961625,21356.0,21355.0,2.16691725]
[1674235899438,0.00961625,21356.0,21355.0,2.44543867]
[1674235899741,0.00961625,21356.0,21355.0,2.16691725]
[1674235904172,0.00961625,21356.0,21355.0,2.095905]
[1674235904712,0.00961625,21356.0,21355.0,2.50710328]
[1674235905790,0.00961625,21356.0,21355.0,2.045575]
[1674235906833,0.00961625,21356.0,21355.0,2.513849]
[1674235907109,0.00961625,21356.0,21355.0,3.29662887]
[1674235907367,0.00961625,21356.0,21355.0,2.99662887]
[1674235908454,0.00961625,21356.0,21355.0,2.8690339]
[1674235908979,0.00961625,21356.0,21355.0,3.20552874]
[1674235909288,0.00961625,21356.0,21355.0,3.47667647]
[1674235909554,0.00961625,21356.0,21355.0,3.0190339]
[1674235910137,0.00961625,21356.0,21355.0,3.37999764]
[1674235910414,0.00961625,21356.0,21355.0,3.0190339]
[1674235910939,0.00961625,21356.0,21355.0,3.43362009]
[1674235912827,0.00961625,21356.0,21355.0,3.0190339]
[1674235913087,0.00961625,21356.0,21355.0,3.43102184]
[1674235913601,0.00961625,21356.0,21355.0,3.35176742]
[1674235914376,0.0001,21360.0,21356.0,0.15620609]
[1674235914641,0.0001,21360.0,21357.0,2.193631]
[1674235914896,0.0001,21360.0,21359.0,0.15]
[1674235915160,0.0001,21360.0,21359.0,1.888707]
[1674235915458,0.0001,21360.0,21359.0,1.738707]
[1674235915734,0.0001,21360.0,21359.0,1.9938324]
[1674235916028,0.0001,21360.0,21359.0,2.0888324]
[1674235916286,0.0001,21360.0,21359.0,1.6206464]
[1674235916549,0.0001,21360.0,21359.0,1.039872]
[1674235916550,0.18899794,21360.0,21359.0,1.039872]
[1674235918387,0.18899794,21360.0,21359.0,0.571686]
[1674235919421,0.0001,21360.0,21359.0,1.039872]
[1674235919678,0.0001,21360.0,21359.0,1.18246957]
[1674235923051,0.0001,21360.0,21359.0,1.92817922]
[1674235923340,0.0001,21360.0,21359.0,2.07817922]
[1674235924115,0.0001,21360.0,21359.0,1.61224422]
[1674235924387,0.0001,21360.0,21359.0,1.46173765]
[1674235925770,0.0001,21360.0,21359.0,1.61173765]
[1674235926870,0.0001,21360.0,21359.0,1.92403965]
[1674235927716,0.0001,21360.0,21359.0,1.61173765]
[1674235928207,0.0001,21360.0,21359.0,1.92911665]
[1674235928450,0.0001,21360.0,21359.0,1.86646831]
[1674235929442,0.0001,21360.0,21359.0,2.18999431]
[1674235930198,0.0001,21360.0,21359.0,1.72180831]
[1674235930470,0.16929621,21361.0,21359.0,1.71646831]
[1674235930723,0.16929621,21361.0,21360.0,0.0085]
[1674235930968,0.16929621,21361.0,21359.0,0.095]
[1674235931234,0.5392333,21360.0,21359.0,0.095]
[1674235931467,0.408974,21360.0,21359.0,0.095]
[1674235931729,0.0742,21360.0,21359.0,0.095]
[1674235932016,0.0742,21360.0,21357.0,1.39586491]
[1674235932281,0.21327815,21359.0,21357.0,1.11467841]
[1674235932561,0.11209785,21358.0,21357.0,1.11467841]
[1674235932802,0.21327815,21359.0,21357.0,1.12317841]
[1674235933042,0.21327815,21359.0,21357.0,0.93614791]
[1674235933292,0.49353158,21359.0,21357.0,1.49637791]
[1674235933535,0.21327815,21359.0,21357.0,1.40437791]
[1674235933824,0.21327815,21359.0,21358.0,0.31288]
[1674235934027,0.325376,21359.0,21358.0,0.781088]
[1674235934291,0.325376,21359.0,21358.0,0.468208]
[1674235934553,0.21327815,21359.0,21358.0,0.24807485]
[1674235934812,0.325376,21359.0,21357.0,0.476714]
[1674235935067,0.325376,21359.0,21358.0,0.936416]
[1674235935352,0.21327815,21359.0,21358.0,0.936416]
[1674235935603,0.21327815,21359.0,21358.0,1.028416]
[1674235936121,0.21327815,21359.0,21358.0,0.560208]
[1674235936435,0.21327815,21359.0,21358.0,1.028416]
[1674235936693,0.21327815,21359.0,21358.0,0.560208]
[1674235938025,0.475376,21359.0,21358.0,0.092]
[1674235938280,0.64353158,21359.0,21358.0,0.092]
[1674235938527,0.49353158,21359.0,21358.0,0.092]
[1674235938790,0.21327815,21359.0,21358.0,0.092]
[1674235939295,0.21327815,21359.0,21358.0,0.560208]
[1674235940088,0.325376,21359.0,21358.0,0.560208]
[1674235940352,0.27808758,21360.0,21358.0,0.560208]
[1674235940612,0.11209785,21359.0,21358.0,0.560208]
[1674235940884,0.55834101,21360.0,21358.0,0.560208]
[1674235941166,0.48414101,21360.0,21358.0,0.560208]
[1674235941906,0.48414101,21360.0,21358.0,1.028416]
[1674235942158,0.48414101,21360.0,21358.0,0.936416]
[1674235942427,0.48414101,21360.0,21358.0,0.561208]
[1674235942428,0.11209785,21359.0,21358.0,0.561208]
[1674235942704,0.27757733,21359.0,21358.0,0.561208]
[1674235943245,0.33363506,21359.0,21358.0,0.093]
[1674235943513,1.23619886,21359.0,21358.0,0.093]
[1674235943759,1.19474174,21359.0,21358.0,0.093]
[1674235944021,1.34772569,21359.0,21358.0,0.093]
[1674235944324,1.34772569,21359.0,21356.0,0.00620609]
[1674235944579,0.18634306,21357.0,21356.0,0.47267923]
[1674235944833,0.0742,21357.0,21356.0,0.46267923]
[1674235945094,0.39188925,21359.0,21356.0,0.46267923]
[1674235945368,0.11214306,21357.0,21356.0,0.93792923]
[1674235945854,0.51434463,21358.0,21356.0,0.93092923]
[1674235946106,0.006,21357.0,21356.0,1.40518123]
[1674235946365,0.006,21357.0,21356.0,1.54510195]
[1674235946876,0.006,21357.0,21356.0,1.40518123]
[1674235947129,0.35455764,21359.0,21356.0,1.39918123]
[1674235947378,0.35455764,21359.0,21357.0,0.323846]
[1674235947379,0.11214306,21359.0,21357.0,0.323846]
[1674235947633,0.19737803,21360.0,21358.0,0.299891]
[1674235947885,0.19737803,21360.0,21357.0,1.52872345]
[1674235948156,0.47773567,21360.0,21357.0,1.52872345]
[1674235948399,0.006,21359.0,21357.0,1.52872345]
[1674235948666,0.47773567,21360.0,21357.0,1.52872345]
[1674235948928,0.47773567,21360.0,21357.0,1.30959503]
[1674235949184,0.11214306,21359.0,21357.0,1.30959503]
[1674235949681,0.30952109,21360.0,21357.0,1.30959503]
[1674235949935,0.30952109,21360.0,21357.0,1.31659503]
[1674235949936,0.28035764,21359.0,21357.0,1.31659503]
[1674235950180,0.11214306,21359.0,21357.0,1.30959503]
[1674235950456,0.11214306,21359.0,21357.0,0.84138103]
[1674235950745,0.11814306,21359.0,21357.0,0.84838103]
[1674235951727,0.006,21359.0,21358.0,0.36685868]
[1674235951977,0.006,21359.0,21358.0,1.15734068]
[1674235952422,0.006,21359.0,21358.0,0.36685868]
[1674235952674,0.31767672,21360.0,21358.0,0.36685868]
[1674235952908,0.006,21359.0,21358.0,1.0083812]
[1674235953163,0.006,21359.0,21358.0,0.84206668]
[1674235953495,0.31767672,21360.0,21358.0,0.83506668]
[1674235953754,0.32367672,21360.0,21358.0,0.84206668]
[1674235954008,0.31767672,21360.0,21358.0,0.83506668]
[1674235954278,0.006,21359.0,21358.0,0.84206668]
[1674235954558,0.31767672,21360.0,21358.0,0.83506668]
[1674235954782,0.32367672,21360.0,21358.0,0.84206668]
[1674235955088,0.32367672,21360.0,21358.0,1.03491535]
[1674235955339,0.4918913,21360.0,21358.0,1.03491535]
[1674235955594,0.31767672,21360.0,21358.0,0.66105667]
[1674235955857,0.09498,21359.0,21358.0,0.468208]
[1674235956119,0.28182027,21359.0,21358.0,0.468208]
[1674235956368,0.28182027,21359.0,21358.0,0.475208]
[1674235956878,0.28182027,21359.0,21358.0,0.468208]
[1674235957226,0.29898333,21359.0,21358.0,0.468208]
[1674235957397,0.30498333,21359.0,21358.0,0.007]
[1674235957668,0.19284027,21359.0,21358.0,0.007]
[1674235957921,0.29284027,21359.0,21358.0,0.007]
[1674235958176,0.47761427,21359.0,21358.0,0.007]
[1674235958523,0.85704981,21359.0,21358.0,0.007]
[1674235958741,1.13611532,21359.0,21358.0,0.007]
[1674235959266,0.85720895,21359.0,21358.0,0.007]
[1674235959518,1.13627446,21359.0,21358.0,0.007]
[1674235960026,0.60190038,21359.0,21358.0,0.007]
[1674235960278,0.37761427,21359.0,21358.0,0.007]
[1674235960537,0.37761427,21359.0,21358.0,0.475208]
[1674235960752,0.36103941,21359.0,21358.0,0.475208]
[1674235961055,0.47317421,21359.0,21358.0,0.475208]
[1674235961541,0.47317421,21359.0,21358.0,0.007]
[1674235961829,0.30497507,21359.0,21358.0,0.007]
[1674235962095,0.30497507,21359.0,21358.0,0.943416]
[1674235962576,0.19284027,21359.0,21358.0,0.943416]
[1674235963785,0.19284027,21359.0,21358.0,0.475208]
[1674235964744,0.26704027,21359.0,21358.0,0.007]
[1674235965254,0.45181427,21359.0,21358.0,0.007]
[1674235965743,0.90181427,21359.0,21358.0,0.007]
[1674235966198,0.86555771,21359.0,21358.0,0.007]
[1674235966662,1.725146,21359.0,21358.0,0.007]
[1674235967339,2.04448746,21359.0,21358.0,0.007]
[1674235967617,2.52168915,21359.0,21358.0,0.007]
[1674235968390,2.67688334,21359.0,21358.0,0.007]
[1674235968656,2.67688334,21359.0,21358.0,0.0045935]
[1674235969100,3.01286698,21359.0,21358.0,0.0045935]
[1674235969105,3.32022079,21359.0,21358.0,0.00201204]
[1674235969397,2.98559098,21359.0,21358.0,0.00201204]
[1674235969659,2.68598436,21359.0,21358.0,0.00201204]
[1674235969926,2.63780938,21359.0,21358.0,0.00201204]
[1674235970222,3.02284231,21359.0,21358.0,0.00201204]
[1674235970443,2.35754188,21359.0,21358.0,0.00201204]
[1674235970706,2.05754188,21359.0,21358.0,0.00201204]
[1674235970975,2.05844033,21359.0,21358.0,0.00201204]
[1674235971195,2.35844033,21359.0,21358.0,0.00201204]
[1674235971720,2.48258614,21359.0,21358.0,0.00201204]
[1674235971967,2.37049076,21359.0,21358.0,0.00201204]
[1674235972224,2.19996669,21359.0,21358.0,0.00201204]
[1674235972499,1.98423774,21359.0,21358.0,0.00201204]
[1674235972723,2.28423774,21359.0,21358.0,0.00201204]
[1674235973020,2.28423774,21359.0,21352.0,0.799441]
[1674235973021,2.52049825,21359.0,21352.0,0.15]
[1674235973280,0.074,21354.0,21351.0,0.83623953]
[1674235973542,0.21775763,21353.0,21352.0,0.87424579]
[1674235973817,0.184774,21353.0,21352.0,0.87424579]
[1674235974104,0.074,21354.0,21352.0,0.468334]
[1674235974363,0.19882583,21353.0,21352.0,0.468334]
[1674235974614,0.19882583,21353.0,21351.0,0.546345]
[1674235974873,0.19882583,21353.0,21351.0,0.468345]
[1674235974874,0.31093624,21353.0,21351.0,0.468345]
[1674235975139,0.31193624,21353.0,21352.0,0.078]
[1674235975422,0.19982583,21353.0,21352.0,0.078]
[1674235975688,0.19882583,21353.0,21351.0,0.468345]
[1674235975943,0.31093624,21353.0,21351.0,0.468345]
[1674235976193,0.49910186,21353.0,21351.0,0.474345]
[1674235976468,0.21882583,21353.0,21351.0,0.474345]
[1674235976779,0.19886687,21352.0,21351.0,0.006]
[1674235976967,0.19886687,21352.0,21350.0,0.8382511]
[1674235977704,0.19886687,21352.0,21351.0,0.006]
[1674235978160,0.19886687,21352.0,21349.0,0.47988809]
[1674235978419,0.21686687,21352.0,21350.0,0.006]
[1674235978922,0.19886687,21352.0,21349.0,0.92861146]
[1674235979680,0.074,21354.0,21350.0,0.52709997]
[1674235979940,0.20393823,21355.0,21351.0,0.52814797]
[1674235980197,0.09598,21352.0,21351.0,0.19432097]
[1674235980453,0.09498,21352.0,21350.0,0.84546297]
[1674235980705,0.09498,21352.0,21350.0,1.01175867]
[1674235980980,0.09498,21352.0,21350.0,1.00475867]
[1674235981237,0.258974,21351.0,21349.0,0.01150009]
[1674235981497,0.184774,21350.0,21349.0,0.01150009]
[1674235981762,0.0742,21351.0,21350.0,0.006]
[1674235982288,0.45098483,21351.0,21350.0,0.006]
[1674235982536,0.45098483,21351.0,21349.0,0.01150009]
[1674235982821,0.26621083,21351.0,21349.0,0.01150009]
[1674235983130,0.26721083,21351.0,21349.0,0.01150009]
[1674235983337,0.184774,21350.0,21349.0,0.01150009]
[1674235983603,0.26721083,21351.0,21349.0,0.01150009]
[1674235984144,0.26721083,21351.0,21349.0,0.45128515]
[1674235984145,0.19301083,21351.0,21349.0,0.45128515]
[1674235984669,0.19301083,21351.0,21350.0,0.09320355]
[1674235984937,0.001,21351.0,21350.0,0.09320355]
[1674235985190,0.001,21351.0,21350.0,0.93015664]
[1674235985458,0.001,21351.0,21350.0,1.24591564]
[1674235985661,0.001,21351.0,21350.0,1.26453364]
[1674235985953,0.14674381,21353.0,21350.0,1.26453364]
[1674235986209,0.001,21351.0,21350.0,1.39854064]
[1674235986463,0.001,21351.0,21350.0,0.89854064]
[1674235986721,0.001,21351.0,21350.0,1.21761765]
[1674235987010,0.14674381,21353.0,21350.0,1.21761765]
[1674235987283,0.14774381,21353.0,21351.0,0.46904294]
[1674235987540,0.14674381,21353.0,21351.0,0.93739894]
[1674235987791,0.14674381,21353.0,21352.0,0.13180635]
[1674235988273,0.14674381,21353.0,21352.0,0.60014635]
[1674235988534,0.54247,21356.0,21352.0,0.60014635]
[1674235988797,0.18641838,21356.0,21353.0,0.19432097]
[1674235989074,0.14801031,21355.0,21354.0,0.38913186]
[1674235989355,0.468249,21357.0,21353.0,0.468318]
[1674235989356,0.18043573,21354.0,21353.0,0.468318]
[1674235989667,0.18043573,21354.0,21352.0,0.46834]
[1674235989862,0.18043573,21354.0,21353.0,0.008]
[1674235990118,0.18043573,21354.0,21352.0,0.468326]
[1674235991633,0.18143573,21354.0,21353.0,0.007]
[1674235991883,0.18043573,21354.0,21352.0,0.468326]
[1674235992134,0.001,21354.0,21352.0,1.35334272]
[1674235992392,0.001,21354.0,21353.0,0.81558428]
[1674235992644,0.001,21354.0,21353.0,1.28390228]
[1674235992908,0.001,21354.0,21353.0,1.75222028]
[1674235993190,0.001,21354.0,21353.0,1.9633648]
[1674235993429,0.001,21354.0,21353.0,1.91025234]
[1674235993688,0.82335503,21360.0,21353.0,1.91025234]
[1674235993689,0.17955869,21356.0,21353.0,1.91025234]
[1674235993938,0.17955869,21356.0,21354.0,0.33402]
[1674235994191,0.17955869,21356.0,21355.0,1.259912]
[1674235994726,0.11211041,21358.0,21355.0,1.259912]
[1674235994944,0.1627577,21359.0,21355.0,1.13086897]
[1674235995206,0.27486811,21359.0,21356.0,1.11357597]
[1674235995464,0.27486811,21359.0,21356.0,1.25505697]
[1674235995729,0.24306562,21360.0,21356.0,1.72330897]
[1674235996050,0.001,21358.0,21357.0,0.21452498]
[1674235996267,0.1939506,21359.0,21357.0,1.01167998]
[1674235996538,0.1949506,21359.0,21358.0,0.47214924]
[1674235996796,0.1949506,21359.0,21358.0,0.15318124]
[1674235997337,0.28027603,21360.0,21358.0,0.15318124]
[1674235997592,0.11311041,21360.0,21359.0,0.10896262]
[1674235997852,0.11211041,21361.0,21359.0,0.81712063]
[1674235998105,0.11211041,21361.0,21360.0,0.328745]
[1674235998367,0.20373675,21361.0,21360.0,0.20822816]
[1674235998623,0.20373675,21361.0,21359.0,0.49740763]
[1674235999138,0.31584716,21361.0,21359.0,0.49740763]
[1674235999689,0.20373675,21361.0,21359.0,0.10896262]
[1674236000002,0.20373675,21361.0,21358.0,0.91168116]
[1674236000177,0.16196667,21360.0,21358.0,0.468201]
[1674236000404,0.03298363,21361.0,21358.0,0.468201]
[1674236000686,0.001,21361.0,21359.0,0.37190583]
[1674236000935,0.55975987,21362.0,21359.0,0.37190583]
[1674236001198,0.11211041,21360.0,21359.0,0.37190583]
[1674236001461,0.28127603,21361.0,21359.0,0.84007983]
[1674236001972,0.11211041,21361.0,21359.0,1.01772881]
[1674236002241,0.14764946,21362.0,21359.0,1.01772881]
[1674236002555,0.14764946,21362.0,21359.0,0.54955481]
[1674236002759,0.14864946,21362.0,21359.0,0.37790583]
[1674236003019,0.18163309,21362.0,21359.0,0.84608183]
[1674236003278,0.48163309,21362.0,21359.0,0.37790583]
[1674236003519,0.56075987,21362.0,21359.0,0.006]
[1674236003771,0.184774,21361.0,21359.0,0.006]
[1674236004015,0.56075987,21362.0,21359.0,0.006]
[1674236004268,0.184774,21361.0,21359.0,0.006]
[1674236004535,0.3,21361.0,21358.0,0.35190585]
[1674236004829,0.45425089,21361.0,21357.0,0.468209]
[1674236005098,0.45425089,21361.0,21356.0,0.90812452]
[1674236005099,0.46505003,21360.0,21356.0,0.90812452]
[1674236005326,0.199681,21359.0,21356.0,0.90812452]
[1674236005583,0.34477504,21359.0,21356.0,0.90812452]
[1674236005836,0.184774,21358.0,21356.0,0.90812452]
[1674236006106,0.31179141,21359.0,21356.0,0.90812452]
[1674236006379,0.31179141,21359.0,21356.0,0.99912452]
[1674236006627,0.31179141,21359.0,21356.0,0.90812452]
[1674236006881,0.31179141,21359.0,21356.0,0.99912452]
[1674236007142,0.31179141,21359.0,21356.0,0.90812452]
[1674236007432,0.31179141,21359.0,21356.0,0.99912452]
[1674236007946,0.59688441,21358.0,21356.0,0.091]
[1674236008213,0.0742,21357.0,21356.0,0.091]
[1674236008474,0.258974,21357.0,21356.0,0.091]
[1674236008708,0.258974,21357.0,21354.0,0.44025576]
[1674236008980,0.0742,21357.0,21356.0,0.007]
[1674236009195,0.258974,21357.0,21354.0,0.44025576]
[1674236009449,0.0822,21357.0,21356.0,0.007]
[1674236009697,0.258974,21357.0,21354.0,0.44025576]
[1674236009948,0.184774,21356.0,21354.0,0.44725576]
[1674236010254,0.550435,21357.0,21354.0,0.007]
[1674236010466,0.38035959,21356.0,21354.0,0.007]
[1674236010716,0.19558559,21356.0,21354.0,0.007]
[1674236010954,0.184774,21355.0,21354.0,0.007]
[1674236011730,0.184774,21355.0,21352.0,0.34858174]
[1674236011983,0.008,21355.0,21352.0,0.34858174]
[1674236012746,1.244219,21356.0,21352.0,0.34858174]
[1674236012993,0.17439281,21355.0,21352.0,0.34858174]
[1674236014607,0.64266881,21355.0,21352.0,0.34858174]
[1674236015643,0.17439281,21355.0,21352.0,0.34858174]
[1674236016437,0.008,21355.0,21352.0,1.47957671]
[1674236016686,0.008,21355.0,21353.0,0.33541]
[1674236016945,0.008,21355.0,21354.0,0.49171167]
[1674236017205,0.008,21355.0,21354.0,0.98238167]
[1674236017473,0.008,21355.0,21354.0,0.64979467]
[1674236018008,0.18515018,21356.0,21354.0,0.64979467]
[1674236018246,0.008,21355.0,21354.0,0.64979467]
[1674236018510,0.008,21355.0,21354.0,1.00279217]
[1674236019051,0.80750262,21358.0,21354.0,0.97734067]
[1674236019302,0.008,21356.0,21354.0,0.85011564]
[1674236019549,0.008,21356.0,21354.0,1.05284335]
[1674236019803,0.19294415,21357.0,21354.0,0.39704868]
[1674236019804,0.66118115,21357.0,21354.0,0.39704868]
[1674236020061,0.19294415,21357.0,21355.0,0.468274]
[1674236020624,0.19294415,21357.0,21355.0,0.15]
[1674236020855,0.19294415,21357.0,21355.0,0.49979292]
[1674236021107,0.20094415,21357.0,21355.0,0.49979292]
[1674236021364,0.20094415,21357.0,21355.0,0.34979292]
[1674236021662,0.19294415,21357.0,21355.0,0.34979292]
[1674236021977,0.20094415,21357.0,21355.0,0.35679292]
[1674236022224,0.20094415,21357.0,21355.0,0.82505992]
[1674236022485,0.008,21357.0,21356.0,0.54477472]
[1674236023009,0.008,21357.0,21355.0,0.475274]
[1674236023300,0.26369856,21357.0,21355.0,0.475274]
[1674236023515,0.25569856,21357.0,21354.0,1.00524465]
[1674236023786,0.15844142,21356.0,21354.0,1.00524465]
[1674236024037,0.15844142,21356.0,21354.0,1.18259902]
[1674236024303,0.15844142,21356.0,21354.0,0.71431902]
[1674236024558,0.15844142,21356.0,21354.0,0.38696465]
[1674236024826,0.27055183,21356.0,21354.0,0.38696465]
[1674236025090,0.81300383,21356.0,21351.0,0.618346]
[1674236025358,0.03298363,21355.0,21354.0,0.006]
[1674236025632,0.94170275,21356.0,21354.0,0.006]
[1674236025633,0.64161637,21356.0,21354.0,0.006]
[1674236025919,0.52091745,21356.0,21354.0,0.006]
[1674236026132,0.51291745,21356.0,21353.0,1.29499556]
[1674236026398,0.35275183,21356.0,21354.0,0.15]
[1674236026650,0.52091745,21356.0,21354.0,0.15]
[1674236026924,0.18412985,21355.0,21353.0,0.35839556]
[1674236027217,0.18412985,21355.0,21352.0,0.15]
[1674236027469,0.48412985,21355.0,21354.0,0.006]
[1674236027729,1.53279126,21355.0,21354.0,0.006]
[1674236027987,0.0742,21354.0,21351.0,0.38661773]
[1674236028249,0.542418,21353.0,21351.0,0.38661773]
[1674236028512,0.0741,21353.0,21351.0,0.38661773]
[1674236028723,0.24288583,21353.0,21351.0,0.38661773]
[1674236028974,0.24288583,21353.0,21351.0,1.00497673]
[1674236029214,0.24288583,21353.0,21351.0,0.85486928]
[1674236029751,0.24288583,21353.0,21351.0,0.38651028]
[1674236030263,0.24288583,21353.0,21351.0,0.47151028]
[1674236030264,0.24388583,21353.0,21351.0,0.47151028]
[1674236030524,0.24388583,21353.0,21351.0,0.085]
[1674236031149,0.35599624,21353.0,21351.0,0.085]
[1674236031406,0.20104727,21352.0,21351.0,0.085]
[1674236031662,0.57213168,21352.0,21351.0,0.085]
[1674236031925,0.76002127,21352.0,21351.0,0.085]
[1674236032742,0.70265418,21352.0,21351.0,0.085]
[1674236033001,0.70265418,21352.0,21349.0,0.01150009]
[1674236033002,0.46002127,21352.0,21349.0,0.46185941]
[1674236033262,0.51432363,21352.0,21351.0,0.007]
[1674236033545,1.53736897,21352.0,21351.0,0.007]
[1674236033811,1.76467945,21352.0,21351.0,0.007]
[1674236034363,1.76467945,21352.0,21349.0,0.01850009]
[1674236034364,1.22229301,21352.0,21349.0,0.01850009]
[1674236034614,0.0742,21351.0,21349.0,0.01150009]
[1674236035974,0.0742,21351.0,21349.0,0.01850009]
[1674236036263,0.0742,21351.0,21349.0,0.01150009]
[1674236036679,0.0872,21351.0,21349.0,0.01750009]
[1674236037118,0.23420644,21351.0,21349.0,0.01750009]
[1674236038194,0.16000644,21351.0,21349.0,0.01750009]
[1674236038762,0.16000644,21351.0,21349.0,0.47579558]
[1674236039000,0.16000644,21351.0,21349.0,0.01750009]
[1674236040369,0.16000644,21351.0,21349.0,0.43512184]
[1674236040630,0.013,21351.0,21349.0,1.0622259]
[1674236040881,0.013,21351.0,21350.0,0.66835689]
[1674236041149,0.013,21351.0,21350.0,1.13674089]
[1674236041423,0.013,21351.0,21350.0,1.41994805]
[1674236042671,0.013,21351.0,21350.0,1.89999757]
[1674236042931,0.30071034,21356.0,21350.0,1.55892016]
[1674236043222,0.012,21351.0,21350.0,1.019468]